fUST/lending_fUST_20251206
["ID","MTS","AMOUNT","RATE_DAILY","PERIOD"]
[396424593,1764964298107,-500.0,0.00018082,2]
[396424594,1764964298117,-500.0,0.00018082,2]
[396424595,1764964298127,-647.83,0.00018082,2]
[396424596,1764964298136,-500.0,0.00018082,2]
[396424597,1764964298146,-1092.74,0.00018082,2]
[396424598,1764964298156,-500.0,0.00018082,2]
[396424599,1764964298166,-500.0,0.00018082,2]
[396424600,1764964298271,-500.0,0.00018082,2]
[396424601,1764964298281,-500.0,0.00018082,2]
[396424602,1764964298290,-1405.79,0.00018082,2]
[396424603,1764964298300,-1078.91,0.00018082,2]
[396424604,1764964298310,-500.0,0.00018082,2]
[396424605,1764964298320,-1311.8,0.00018082,2]
[396424606,1764964298330,-579.26386162,0.00018082,2]
[396424607,1764964298340,-1734.17,0.00018082,2]
[396424608,1764964298349,-698.12,0.00018082,2]
[396424609,1764964298359,-1866.07,0.00018082,2]
[396424610,1764964298369,-500.0,0.00018082,2]
[396424611,1764964298378,-500.0,0.00018082,2]
[396424612,1764964298388,-1534.72,0.00018082,2]
[396424613,1764964298397,-524.96,0.00018082,2]
[396424614,1764964298407,-500.0,0.00018082,2]
[396424615,1764964298416,-500.0,0.00018082,2]
[396424616,1764964298426,-2060.56,0.00018082,2]
[396424617,1764964298435,-500.0,0.00018082,2]
[396424618,1764964298444,-673.73,0.00018082,2]
[396424619,1764964298454,-701.23,0.00018082,2]
[396424620,1764964298464,-1698.62,0.00018082,2]
[396424621,1764964298475,-658.93,0.00018082,2]
[396424622,1764964298484,-254.44803698,0.00018082,2]
[396424623,1764964298494,-742.38,0.00018082,2]
[396424624,1764964298503,-747.63,0.00018082,2]
[396424625,1764964298512,-667.01,0.00018082,2]
[396424626,1764964298522,-500.0,0.00018082,2]
[396424627,1764964298533,-500.0,0.00018082,2]
[396424628,1764964298547,-500.0,0.00018082,2]
[396424629,1764964298557,-1151.69,0.00018082,2]
[396424630,1764964298570,-721.72,0.00018082,2]
[396424631,1764964298581,-500.0,0.00018082,2]
[396424632,1764964298593,-991.55,0.00018082,2]
[396424633,1764964298604,-500.0,0.00018082,2]
[396424634,1764964298618,-500.0,0.00018082,2]
[396424635,1764964298630,-596.6,0.00018082,2]
[396424636,1764964298639,-1963.89,0.00018082,2]
[396424637,1764964298649,-2056.09,0.00018082,2]
[396424638,1764964298661,-500.0,0.00018082,2]
[396424639,1764964298671,-500.0,0.00018082,2]
[396424640,1764964298681,-1932.03,0.00018082,2]
[396424641,1764964298691,-1925.2,0.00018082,2]
[396424642,1764964298700,-694.04,0.00018082,2]
[396424643,1764964298711,-1279.51,0.00018082,2]
[396424644,1764964298722,-500.0,0.00018082,2]
[396424645,1764964298733,-552.82,0.00018082,2]
[396424646,1764964298743,-1066.32,0.00018082,2]
[396424647,1764964298754,-500.0,0.00018082,2]
[396424648,1764964298764,-1282.6,0.00018082,2]
[396424649,1764964298776,-500.0,0.00018082,2]
[396424650,1764964298787,-1077.48,0.00018082,2]
[396424651,1764964298797,-500.0,0.00018082,2]
[396424652,1764964298806,-500.0,0.00018082,2]
[396424653,1764964298816,-500.0,0.00018082,2]
[396424654,1764964298826,-1056.93,0.00018082,2]
[396424655,1764964298837,-1405.18,0.00018082,2]
[396424656,1764964298847,-798.61,0.00018082,2]
[396424657,1764964298857,-500.0,0.00018082,2]
[396424658,1764964298868,-1114.7,0.00018082,2]
[396424659,1764964298877,-867.37,0.00018082,2]
[396424660,1764964298887,-500.0,0.00018082,2]
[396424661,1764964298896,-773.03,0.00018082,2]
[396424662,1764964298906,-2394.89,0.00018082,2]
[396424663,1764964298916,-500.4,0.00018082,2]
[396424664,1764964298925,-500.0,0.00018082,2]
[396424665,1764964298935,-1140.55,0.00018082,2]
[396424666,1764964298945,-507.01,0.00018082,2]
[396424667,1764964298955,-500.0,0.00018082,2]
[396424668,1764964298965,-500.0,0.00018082,2]
[396424669,1764964298974,-753.55,0.00018082,2]
[396424670,1764964298984,-500.0,0.00018082,2]
[396424671,1764964298996,-500.0,0.00018082,2]
[396424672,1764964299009,-500.0,0.00018082,2]
[396424673,1764964299018,-1160.45,0.00018082,2]
[396424674,1764964299029,-500.0,0.00018082,2]
[396424675,1764964299039,-801.76,0.00018082,2]
[396424676,1764964299051,-542.43,0.00018082,2]
[396424677,1764964299061,-2713.85,0.00018082,2]
[396424678,1764964299071,-500.0,0.00018082,2]
[396424679,1764964299080,-914.46,0.00018082,2]
[396424680,1764964299091,-500.0,0.00018082,2]
[396424681,1764964299101,-4419.03,0.00018082,2]
[396424682,1764964299110,-262.67729203,0.00018082,2]
[396424683,1764964299120,-526.41,0.00018082,2]
[396424684,1764964299129,-588.91,0.00018082,2]
[396424685,1764964299139,-981.61,0.00018082,2]
[396424686,1764964299148,-562.03,0.00018082,2]
[396424687,1764964299157,-1146.46,0.00018082,2]
[396424688,1764964299167,-500.0,0.00018082,2]
[396424689,1764964299176,-1195.63,0.00018082,2]
[396424690,1764964299185,-500.0,0.00018082,2]
[396424691,1764964299194,-500.0,0.00018082,2]
[396424692,1764964299205,-2202.96,0.00018082,2]
[396424693,1764964299215,-500.0,0.00018082,2]
[396424694,1764964299225,-500.0,0.00018082,2]
[396424695,1764964299234,-769.64,0.00018082,2]
[396424696,1764964299243,-813.86,0.00018082,2]
[396424697,1764964299253,-530.06,0.00018082,2]
[396424698,1764964299262,-500.0,0.00018082,2]
[396424699,1764964299272,-708.5,0.00018082,2]
[396424700,1764964299282,-2092.31,0.00018082,2]
[396424701,1764964299291,-500.0,0.00018082,2]
[396424702,1764964299300,-500.0,0.00018082,2]
[396424703,1764964299309,-528.45,0.00018082,2]
[396424704,1764964299318,-532.79,0.00018082,2]
[396424705,1764964299327,-500.0,0.00018082,2]
[396424706,1764964299336,-1131.46,0.00018082,2]
[396424707,1764964299345,-1131.9,0.00018082,2]
[396424708,1764964299355,-500.0,0.00018082,2]
[396424709,1764964299364,-500.0,0.00018082,2]
[396424710,1764964299373,-500.0,0.00018082,2]
[396424711,1764964299383,-500.0,0.00018082,2]
[396424712,1764964299392,-608.86,0.00018082,2]
[396424713,1764964299401,-880.35,0.00018082,2]
[396424714,1764964299411,-784.6,0.00018082,2]
[396424715,1764964299420,-500.0,0.00018082,2]
[396424716,1764964299429,-589.81,0.00018082,2]
[396424717,1764964299438,-500.0,0.00018082,2]
[396424718,1764964299448,-500.0,0.00018082,2]
[396424719,1764964299458,-500.0,0.00018082,2]
[396424720,1764964299467,-537.52,0.00018082,2]
[396424721,1764964299478,-1014.04,0.00018082,2]
[396424722,1764964299487,-2220.46,0.00018082,2]
[396424723,1764964299497,-2190.66,0.00018082,2]
[396424724,1764964299506,-1158.75,0.00018082,2]
[396424725,1764964299516,-646.00941258,0.00018082,2]
[396424726,1764964299525,-500.0,0.00018082,2]
[396424727,1764964299535,-681.06,0.00018082,2]
[396424728,1764964299544,-500.0,0.00018082,2]
[396424729,1764964299553,-2115.78,0.00018082,2]
[396424730,1764964299563,-500.0,0.00018082,2]
[396424731,1764964299572,-766.35,0.00018082,2]
[396424732,1764964299581,-966.12,0.00018082,2]
[396424733,1764964299591,-914.28,0.00018082,2]
[396424734,1764964299600,-982.55,0.00018082,2]
[396424735,1764964299609,-500.0,0.00018082,2]
[396424736,1764964299618,-500.0,0.00018082,2]
[396424737,1764964299628,-500.0,0.00018082,2]
[396424738,1764964299637,-500.0,0.00018082,2]
[396424739,1764964299646,-936.35,0.00018082,2]
[396424740,1764964299656,-500.0,0.00018082,2]
[396424741,1764964299665,-500.0,0.00018082,2]
[396424742,1764964299674,-224.74800531,0.00018082,2]
[396424743,1764964299683,-500.0,0.00018082,2]
[396424744,1764964299693,-500.0,0.00018082,2]
[396424745,1764964299702,-749.63,0.00018082,2]
[396424746,1764964299712,-1641.15,0.00018082,2]
[396424747,1764964299721,-1076.77,0.00018082,2]
[396424748,1764964299732,-500.0,0.00018082,2]
[396424749,1764964299741,-500.0,0.00018082,2]
[396424750,1764964299750,-500.0,0.00018082,2]
[396424751,1764964299760,-500.0,0.00018082,2]
[396424752,1764964299770,-603.68,0.00018082,2]
[396424753,1764964299779,-500.0,0.00018082,2]
[396424754,1764964299789,-698.96,0.00018082,2]
[396424755,1764964299798,-1666.18,0.00018082,2]
[396424756,1764964299807,-671.97,0.00018082,2]
[396424757,1764964299817,-502.19,0.00018082,2]
[396424758,1764964299826,-500.0,0.00018082,2]
[396424759,1764964299836,-2087.17,0.00018082,2]
[396424760,1764964299845,-500.0,0.00018082,2]
[396424761,1764964299856,-500.0,0.00018082,2]
[396424762,1764964299865,-516.65,0.00018082,2]
[396424763,1764964299875,-500.0,0.00018082,2]
[396424764,1764964299886,-500.0,0.00018082,2]
[396424765,1764964299897,-2037.83,0.00018082,2]
[396424766,1764964299907,-501.13,0.00018082,2]
[396424767,1764964299917,-500.0,0.00018082,2]
[396424768,1764964299927,-571.62,0.00018082,2]
[396424769,1764964299938,-500.0,0.00018082,2]
[396424770,1764964299948,-1758.23,0.00018082,2]
[396424771,1764964299958,-4101.23,0.00018082,2]
[396424772,1764964299967,-1128.95,0.00018082,2]
[396424773,1764964299977,-217.66201298,0.00018082,2]
[396424774,1764964299986,-735.18,0.00018082,2]
[396424775,1764964299995,-2336.08,0.00018082,2]
[396424776,1764964300009,-656.91,0.00018082,2]
[396424777,1764964300018,-500.0,0.00018082,2]
[396424778,1764964300029,-942.22,0.00018082,2]
[396424779,1764964300039,-606.67,0.00018082,2]
[396424780,1764964300050,-500.0,0.00018082,2]
[396424781,1764964300060,-866.26,0.00018082,2]
[396424782,1764964300070,-500.0,0.00018082,2]
[396424783,1764964300081,-308.88218531,0.00018082,2]
[396424784,1764964300090,-500.13,0.00018082,2]
[396424785,1764964300099,-500.0,0.00018082,2]
[396424786,1764964300109,-500.0,0.00018082,2]
[396424787,1764964300119,-500.0,0.00018082,2]
[396424788,1764964300128,-500.0,0.00018082,2]
[396424789,1764964300138,-748.38,0.00018082,2]
[396424790,1764964300147,-784.77,0.00018082,2]
[396424791,1764964300157,-500.0,0.00018082,2]
[396424792,1764964300167,-3000.65,0.00018082,2]
[396424793,1764964300176,-525.35,0.00018082,2]
[396424794,1764964300185,-337.03050244,0.00018082,2]
[396424795,1764964300194,-632.24,0.00018082,2]
[396424796,1764964300204,-500.0,0.00018082,2]
[396424797,1764964300213,-734.19,0.00018082,2]
[396424798,1764964300223,-500.0,0.00018082,2]
[396424799,1764964300233,-500.0,0.00018082,2]
[396424800,1764964300242,-1121.55,0.00018082,2]
[396424801,1764964300252,-4195.91,0.00018082,2]
[396424802,1764964300262,-500.0,0.00018082,2]
[396424803,1764964300272,-1169.87,0.00018082,2]
[396424804,1764964300282,-179.97612696,0.00018082,2]
[396424805,1764964300292,-500.0,0.00018082,2]
[396424806,1764964300301,-500.0,0.00018082,2]
[396424807,1764964300311,-1721.78,0.00018082,2]
[396424808,1764964300320,-797.93,0.00018082,2]
[396424809,1764964300330,-500.0,0.00018082,2]
[396424810,1764964300340,-500.0,0.00018082,2]
[396424811,1764964300349,-3352.24,0.00018082,2]
[396424812,1764964300359,-701.25,0.00018082,2]
[396424813,1764964300368,-500.0,0.00018082,2]
[396424814,1764964300378,-1865.02,0.00018082,2]
[396424815,1764964300388,-500.0,0.00018082,2]
[396424816,1764964300397,-547.35,0.00018082,2]
[396424817,1764964300407,-1140.86,0.00018082,2]
[396424818,1764964300417,-1061.3,0.00018082,2]
[396424819,1764964300427,-581.3,0.00018082,2]
[396424820,1764964300437,-561.53,0.00018082,2]
[396424821,1764964300447,-1248.52,0.00018082,2]
[396424822,1764964300457,-500.0,0.00018082,2]
[396424823,1764964300466,-565.64,0.00018082,2]
[396424824,1764964300475,-500.0,0.00018082,2]
[396424825,1764964300485,-1569.73,0.00018082,2]
[396424826,1764964300494,-1818.55,0.00018082,2]
[396424827,1764964300504,-522.2,0.00018082,2]
[396424828,1764964300513,-875.06,0.00018082,2]
[396424829,1764964300522,-500.0,0.00018082,2]
[396424830,1764964300532,-500.0,0.00018082,2]
[396424831,1764964300542,-1114.54,0.00018082,2]
[396424832,1764964300551,-500.0,0.00018082,2]
[396424833,1764964300561,-500.0,0.00018082,2]
[396424834,1764964300571,-500.0,0.00018082,2]
[396424835,1764964300581,-1202.31,0.00018082,2]
[396424836,1764964300591,-500.0,0.00018082,2]
[396424837,1764964300600,-1019.58,0.00018082,2]
[396424838,1764964300609,-1283.59,0.00018082,2]
[396424839,1764964300619,-500.0,0.00018082,2]
[396424840,1764964300629,-500.0,0.00018082,2]
[396424841,1764964300638,-1200.75,0.00018082,2]
[396424842,1764964300648,-500.0,0.00018082,2]
[396424843,1764964300658,-506.37,0.00018082,2]
[396424844,1764964300668,-500.0,0.00018082,2]
[396424845,1764964300678,-500.0,0.00018082,2]
[396424846,1764964300689,-1231.58,0.00018082,2]
[396424847,1764964300698,-506.68,0.00018082,2]
[396424848,1764964300708,-654.39,0.00018082,2]
[396424849,1764964300719,-500.0,0.00018082,2]
[396424850,1764964300729,-500.0,0.00018082,2]
[396424851,1764964300739,-500.0,0.00018082,2]
[396424852,1764964300748,-1113.91,0.00018082,2]
[396424853,1764964300757,-663.62,0.00018082,2]
[396424854,1764964300767,-753.47,0.00018082,2]
[396424855,1764964300777,-1445.18,0.00018082,2]
[396424856,1764964300788,-500.0,0.00018082,2]
[396424857,1764964300797,-500.0,0.00018082,2]
[396424858,1764964300806,-500.0,0.00018082,2]
[396424859,1764964300816,-780.5,0.00018082,2]
[396424860,1764964300826,-889.08,0.00018082,2]
[396424861,1764964300836,-500.0,0.00018082,2]
[396424862,1764964300846,-2835.2,0.00018082,2]
[396424863,1764964300856,-500.0,0.00018082,2]
[396424864,1764964300866,-500.0,0.00018082,2]
[396424865,1764964300875,-360.97849021,0.00018082,2]
[396424866,1764964300886,-1729.46,0.00018082,2]
[396424867,1764964300897,-530.93713735,0.00018082,2]
[396424868,1764964300907,-1979.46,0.00018082,2]
[396424869,1764964300917,-575.86,0.00018082,2]
[396424870,1764964300927,-500.0,0.00018082,2]
[396424871,1764964300937,-1316.03,0.00018082,2]
[396424872,1764964300948,-1835.34,0.00018082,2]
[396424873,1764964300958,-500.0,0.00018082,2]
[396424874,1764964300968,-908.87,0.00018082,2]
[396424875,1764964300978,-653.14,0.00018082,2]
[396424876,1764964300988,-500.0,0.00018082,2]
[396424877,1764964301001,-557.4,0.00018082,2]
[396424878,1764964301014,-978.78,0.00018082,2]
[396424879,1764964301024,-500.0,0.00018082,2]
[396424880,1764964301034,-500.0,0.00018082,2]
[396424881,1764964301043,-1274.81,0.00018082,2]
[396424882,1764964301054,-500.0,0.00018082,2]
[396424883,1764964301064,-500.0,0.00018082,2]
[396424884,1764964301075,-500.0,0.00018082,2]
[396424885,1764964301088,-1825.48,0.00018082,2]
[396424886,1764964301097,-1459.61,0.00018082,2]
[396424887,1764964301107,-500.0,0.00018082,2]
[396424888,1764964301116,-500.0,0.00018082,2]
[396424889,1764964301126,-1362.88,0.00018082,2]
[396424890,1764964301136,-2330.6,0.00018082,2]
[396424891,1764964301145,-2129.96,0.00018082,2]
[396424892,1764964301155,-500.0,0.00018082,2]
[396424893,1764964301165,-500.0,0.00018082,2]
[396424894,1764964301174,-500.0,0.00018082,2]
[396424895,1764964301184,-664.95,0.00018082,2]
[396424896,1764964301193,-1189.18,0.00018082,2]
[396424897,1764964301202,-500.0,0.00018082,2]
[396424898,1764964301212,-989.95,0.00018082,2]
[396424899,1764964301221,-1775.43,0.00018082,2]
[396424900,1764964301232,-1334.27,0.00018082,2]
[396424901,1764964301241,-500.0,0.00018082,2]
[396424902,1764964301250,-500.0,0.00018082,2]
[396424903,1764964301260,-500.0,0.00018082,2]
[396424904,1764964301270,-796.25,0.00018082,2]
[396424905,1764964301279,-500.0,0.00018082,2]
[396424906,1764964301289,-500.0,0.00018082,2]
[396424907,1764964301299,-4147.96,0.00018082,2]
[396424908,1764964301308,-500.0,0.00018082,2]
[396424909,1764964301318,-500.0,0.00018082,2]
[396424910,1764964301328,-677.16,0.00018082,2]
[396424911,1764964301337,-3508.67,0.00018082,2]
[396424912,1764964301347,-3856.98,0.00018082,2]
[396424913,1764964301357,-1405.37,0.00018082,2]
[396424914,1764964301367,-500.0,0.00018082,2]
[396424915,1764964301377,-500.0,0.00018082,2]
[396424916,1764964301387,-8546.16,0.00018082,2]
[396424917,1764964301397,-595.52,0.00018082,2]
[396424918,1764964301407,-2012.27,0.00018082,2]
[396424919,1764964301417,-760.14,0.00018082,2]
[396424920,1764964301427,-500.0,0.00018082,2]
[396424921,1764964301437,-869.37,0.00018082,2]
[396424922,1764964301446,-2862.43,0.00018082,2]
[396424923,1764964301456,-500.0,0.00018082,2]
[396424924,1764964301466,-500.0,0.00018082,2]
[396424925,1764964301476,-1260.61,0.00018082,2]
[396424926,1764964301486,-27168.59,0.00018082,2]
[396424927,1764964301496,-2573.74,0.00018082,2]
[396424928,1764964301505,-500.0,0.00018082,2]
[396424929,1764964301515,-500.0,0.00018082,2]
[396424930,1764964301524,-1519.74,0.00018082,2]
[396424931,1764964301534,-3739.24,0.00018082,2]
[396424932,1764964301543,-837.97,0.00018082,2]
[396424933,1764964301553,-2210.97,0.00018082,2]
[396424934,1764964301562,-879.68,0.00018082,2]
[396424935,1764964301572,-934.83,0.00018082,2]
[396424936,1764964301581,-1534.0,0.00018082,2]
[396424937,1764964301592,-613.38,0.00018082,2]
[396424938,1764964301601,-1145.34,0.00018082,2]
[396424939,1764964301611,-7737.29,0.00018082,2]
[396424940,1764964301622,-2897.13,0.00018082,2]
[396424941,1764964301632,-2245.52,0.00018082,2]
[396424942,1764964301642,-3989.26,0.00018082,2]
[396424943,1764964301652,-1590.89,0.00018082,2]
[396424944,1764964301662,-4880.82,0.00018082,2]
[396424945,1764964301672,-500.0,0.00018082,2]
[396424946,1764964301682,-500.0,0.00018082,2]
[396424947,1764964301692,-2037.18,0.00018082,2]
[396424948,1764964301701,-500.0,0.00018082,2]
[396424949,1764964301711,-1939.29,0.00018082,2]
[396424950,1764964301721,-500.0,0.00018082,2]
[396424951,1764964301732,-429.28038921,0.00018082,2]
[396424952,1764964301742,-603.68,0.00018082,2]
[396424953,1764964301753,-500.0,0.00018082,2]
[396424954,1764964301763,-500.0,0.00018082,2]
[396424955,1764964301774,-586.39,0.00018082,2]
[396424956,1764964301785,-3745.52,0.00018082,2]
[396424957,1764964301795,-1761.7,0.00018082,2]
[396424958,1764964301805,-500.0,0.00018082,2]
[396424959,1764964301815,-500.0,0.00018082,2]
[396424960,1764964301825,-500.0,0.00018082,2]
[396424961,1764964301836,-500.0,0.00018082,2]
[396424962,1764964301847,-1154.72,0.00018082,2]
[396424963,1764964302105,-8082.89,0.00018082,2]
[396424964,1764964302115,-808.12,0.00018082,2]
[396424965,1764964302124,-1316.55,0.00018082,2]
[396424966,1764964302134,-1061.67,0.00018082,2]
[396424967,1764964302143,-1179.67,0.00018082,2]
[396424968,1764964302152,-500.0,0.00018082,2]
[396424969,1764964302162,-500.0,0.00018082,2]
[396424970,1764964302171,-500.0,0.00018082,2]
[396424971,1764964302181,-548.83,0.00018082,2]
[396424972,1764964302190,-2735.13,0.00018082,2]
[396424973,1764964302200,-2878.01,0.00018082,2]
[396424974,1764964302209,-570.99797339,0.00018082,2]
[396424975,1764964302219,-500.0,0.00018082,2]
[396424976,1764964302228,-500.0,0.00018082,2]
[396424977,1764964302238,-6762.23,0.00018082,2]
[396424978,1764964302247,-1977.79,0.00018082,2]
[396424979,1764964302257,-207.79173516,0.00018082,2]
[396424980,1764964302267,-500.0,0.00018082,2]
[396424981,1764964302276,-512.63,0.00018082,2]
[396424982,1764964302285,-531.05,0.00018082,2]
[396424983,1764964302294,-690.27,0.00018082,2]
[396424984,1764964302304,-588.28,0.00018082,2]
[396424985,1764964302313,-500.0,0.00018082,2]
[396424986,1764964302322,-500.0,0.00018082,2]
[396424987,1764964302332,-500.0,0.00018082,2]
[396424988,1764964302342,-1011.28,0.00018082,2]
[396424989,1764964302351,-6262.41,0.00018082,2]
[396424990,1764964302361,-500.0,0.00018082,2]
[396424991,1764964302371,-2046.2,0.00018082,2]
[396424992,1764964302380,-500.0,0.00018082,2]
[396424993,1764964302390,-2730.7,0.00018082,2]
[396424994,1764964302401,-776.59,0.00018082,2]
[396424995,1764964302412,-500.0,0.00018082,2]
[396424996,1764964302421,-632.99,0.00018082,2]
[396424997,1764964302431,-9293.72,0.00018082,2]
[396424998,1764964302440,-500.0,0.00018082,2]
[396424999,1764964302449,-500.0,0.00018082,2]
[396425000,1764964302459,-1523.9,0.00018082,2]
[396425001,1764964302468,-2206.65,0.00018082,2]
[396425002,1764964302479,-1216.27,0.00018082,2]
[396425003,1764964302489,-890.47,0.00018082,2]
[396425004,1764964302498,-1517.87,0.00018082,2]
[396425005,1764964302507,-500.0,0.00018082,2]
[396425006,1764964302517,-500.0,0.00018082,2]
[396425007,1764964302527,-678.08,0.00018082,2]
[396425008,1764964302536,-12607.12,0.00018082,2]
[396425009,1764964302545,-1261.52,0.00018082,2]
[396425010,1764964302555,-3411.98,0.00018082,2]
[396425011,1764964302564,-500.0,0.00018082,2]
[396425012,1764964302574,-8433.96,0.00018082,2]
[396425013,1764964302583,-500.0,0.00018082,2]
[396425014,1764964302592,-4594.16,0.00018082,2]
[396425015,1764964302602,-639.2,0.00018082,2]
[396425016,1764964302611,-601.94,0.00018082,2]
[396425017,1764964302620,-500.0,0.00018082,2]
[396425018,1764964302630,-557.9,0.00018082,2]
[396425019,1764964302639,-768.56,0.00018082,2]
[396425020,1764964302649,-564.07,0.00018082,2]
[396425021,1764964302659,-2955.98,0.00018082,2]
[396425022,1764964302669,-1537.53,0.00018082,2]
[396425023,1764964302679,-1822.27,0.00018082,2]
[396425024,1764964302689,-417.96652728,0.00018082,2]
[396425025,1764964302698,-470.62524762,0.00018082,2]
[396425026,1764964302708,-1145.09,0.00018082,2]
[396425027,1764964302718,-1807.2,0.00018082,2]
[396425028,1764964302727,-3671.84,0.00018082,2]
[396425029,1764964302737,-500.0,0.00018082,2]
[396425030,1764964302746,-1517.42,0.00018082,2]
[396425031,1764964302755,-1021.51,0.00018082,2]
[396425032,1764964302765,-500.0,0.00018082,2]
[396425033,1764964302775,-500.0,0.00018082,2]
[396425034,1764964302784,-1718.3,0.00018082,2]
[396425035,1764964302794,-15606.7,0.00018082,2]
[396425036,1764964302804,-500.0,0.00018082,2]
[396425037,1764964302813,-7505.89,0.00018082,2]
[396425038,1764964302822,-629.93,0.00018082,2]
[396425039,1764964302831,-500.0,0.00018082,2]
[396425040,1764964302840,-4537.01,0.00018082,2]
[396425041,1764964302850,-500.0,0.00018082,2]
[396425042,1764964302859,-465.60614344,0.00018082,2]
[396425043,1764964302869,-1340.59,0.00018082,2]
[396425044,1764964302879,-1160.08,0.00018082,2]
[396425045,1764964302890,-500.0,0.00018082,2]
[396425046,1764964302900,-6149.82,0.00018082,2]
[396425047,1764964302909,-2978.24,0.00018082,2]
[396425048,1764964302920,-500.0,0.00018082,2]
[396425049,1764964302929,-566.43,0.00018082,2]
[396425050,1764964302939,-500.0,0.00018082,2]
[396425051,1764964302948,-1483.55,0.00018082,2]
[396425052,1764964302957,-2769.97,0.00018082,2]
[396425053,1764964302967,-1249.37,0.00018082,2]
[396425054,1764964302977,-500.0,0.00018082,2]
[396425055,1764964302987,-500.0,0.00018082,2]
[396425056,1764964302996,-603.32,0.00018082,2]
[396425057,1764964303009,-500.0,0.00018082,2]
[396425058,1764964303019,-1573.31,0.00018082,2]
[396425059,1764964303030,-2626.61,0.00018082,2]
[396425060,1764964303040,-500.0,0.00018082,2]
[396425061,1764964303051,-5057.213907,0.00018082,2]
[396425062,1764964303062,-500.0,0.00018082,2]
[396425063,1764964303072,-4802.09,0.00018082,2]
[396425064,1764964303083,-500.0,0.00018082,2]
[396425065,1764964303093,-999.44,0.00018082,2]
[396425066,1764964303103,-1503.75,0.00018082,2]
[396425067,1764964303113,-19450.21,0.00018082,2]
[396425068,1764964303123,-500.0,0.00018082,2]
[396425069,1764964303132,-500.0,0.00018082,2]
[396425070,1764964303142,-1075.02,0.00018082,2]
[396425071,1764964303152,-500.0,0.00018082,2]
[396425072,1764964303162,-500.0,0.00018082,2]
[396425073,1764964303171,-1106.6,0.00018082,2]
[396425074,1764964303180,-500.0,0.00018082,2]
[396425075,1764964303190,-840.72,0.00018082,2]
[396425076,1764964303200,-500.0,0.00018082,2]
[396425077,1764964303210,-1613.52,0.00018082,2]
[396425078,1764964303220,-500.0,0.00018082,2]
[396425079,1764964303231,-500.0,0.00018082,2]
[396425080,1764964303242,-518.4,0.00018082,2]
[396425081,1764964303252,-500.0,0.00018082,2]
[396425082,1764964303262,-3055.31,0.00018082,2]
[396425083,1764964303272,-994.67,0.00018082,2]
[396425084,1764964303283,-500.0,0.00018082,2]
[396425085,1764964303293,-500.0,0.00018082,2]
[396425086,1764964303303,-994.61,0.00018082,2]
[396425087,1764964303314,-5779.12,0.00018082,2]
[396425088,1764964303324,-500.0,0.00018082,2]
[396425089,1764964303335,-541.54,0.00018082,2]
[396425090,1764964303345,-500.0,0.00018082,2]
[396425091,1764964303355,-2703.83,0.00018082,2]
[396425092,1764964303367,-13490.98,0.00018082,2]